[Event "*** Titled Tuesday Blitz"]
[Site "Chess.com"]
[Date "2020.10.27"]
[Round "2"]
[White "geordie_derraugh"]
[Black "WonderChampion"]
[Result "1-0"]
[WhiteElo "2408"]
[BlackElo "2039"]
[TimeControl "180+1"]
[EndTime "10:14:38 PDT"]
[Termination "geordie_derraugh won by checkmate"]

1. e4 {[%clk 0:03:00.9]} 1... c5 {[%clk 0:02:40.5]} 2. Nf3 {[%clk 0:03:00.6]}
2... g6 {[%clk 0:02:40.2]} 3. c3 {[%clk 0:03:00.3]} 3... Nf6 {[%clk 0:02:38.5]}
4. e5 {[%clk 0:02:59.8]} 4... Nd5 {[%clk 0:02:37.9]} 5. d4 {[%clk 0:03:00.4]}
5... cxd4 {[%clk 0:02:38.8]} 6. cxd4 {[%clk 0:02:59.4]} 6... Bg7 {[%clk
0:02:37.5]} 7. Bc4 {[%clk 0:02:58.8]} 7... Nb6 {[%clk 0:02:36.5]} 8. Bb3 {[%clk
0:02:59]} 8... O-O {[%clk 0:02:34.1]} 9. O-O {[%clk 0:02:58.5]} 9... Nc6 {[%clk
0:02:33.2]} 10. Nc3 {[%clk 0:02:53.3]} 10... d6 {[%clk 0:02:31.5]} 11. exd6
{[%clk 0:02:38.1]} 11... Qxd6 {[%clk 0:02:32.4]} 12. Be3 {[%clk 0:02:34.7]}
12... Bg4 {[%clk 0:02:30.6]} 13. Ne4 {[%clk 0:02:34.2]} 13... Qd8 {[%clk
0:02:25.3]} 14. Neg5 {[%clk 0:02:22.8]} 14... h6 {[%clk 0:02:16.4]} 15. Nxf7
{[%clk 0:02:15.9]} 15... Rxf7 {[%clk 0:02:13.4]} 16. Bxf7+ {[%clk 0:02:16.8]}
16... Kxf7 {[%clk 0:02:14.3]} 17. Ng5+ {[%clk 0:02:14.7]} 17... hxg5 {[%clk
0:02:12.7]} 18. Qxg4 {[%clk 0:02:15]} 18... Qd5 {[%clk 0:02:07.8]} 19. f4 {[%clk
0:01:53.2]} 19... Kg8 {[%clk 0:02:05.7]} 20. fxg5 {[%clk 0:01:51.6]} 20... Bxd4
{[%clk 0:01:58.5]} 21. Rae1 {[%clk 0:01:41.1]} 21... Bxe3+ {[%clk 0:01:56]} 22.
Rxe3 {[%clk 0:01:42]} 22... Qc5 {[%clk 0:01:54.1]} 23. Qe6+ {[%clk 0:01:40.7]}
23... Kg7 {[%clk 0:01:46.9]} 24. Rf7+ {[%clk 0:01:30.9]} 24... Kh8 {[%clk
0:01:43.9]} 25. Qh3+ {[%clk 0:01:30.6]} 25... Kg8 {[%clk 0:01:40.4]} 26. Qh7#
{[%clk 0:01:30.2]} 1-0

[Event "*** Titled Tuesday Blitz"]
[Site "Chess.com"]
[Date "2020.10.27"]
[Round "2"]
[White "Evachess2006"]
[Black "Vanina1989"]
[Result "0-1"]
[WhiteElo "1622"]
[BlackElo "2641"]
[TimeControl "180+1"]
[EndTime "10:14:46 PDT"]
[Termination "Vanina1989 won by resignation"]

1. e4 {[%clk 0:02:37.1]} 1... c6 {[%clk 0:02:58.3]} 2. d4 {[%clk 0:02:29.4]}
2... d5 {[%clk 0:02:58.6]} 3. exd5 {[%clk 0:02:25.2]} 3... cxd5 {[%clk
0:02:58.7]} 4. Bd3 {[%clk 0:02:25.8]} 4... Nc6 {[%clk 0:02:58.9]} 5. c3 {[%clk
0:02:25.9]} 5... g6 {[%clk 0:02:59]} 6. Nf3 {[%clk 0:02:26.5]} 6... Bg7 {[%clk
0:02:59]} 7. O-O {[%clk 0:02:17]} 7... Bf5 {[%clk 0:02:59.2]} 8. Bxf5 {[%clk
0:02:14.7]} 8... gxf5 {[%clk 0:02:59.3]} 9. Qb3 {[%clk 0:02:15.3]} 9... Qd7
{[%clk 0:02:57.2]} 10. Bf4 {[%clk 0:02:15.4]} 10... e6 {[%clk 0:02:56.2]} 11.
Nbd2 {[%clk 0:02:13.9]} 11... Nge7 {[%clk 0:02:55.6]} 12. Ne5 {[%clk 0:02:13]}
12... Bxe5 {[%clk 0:02:47.7]} 13. Bxe5 {[%clk 0:02:13.9]} 13... Rg8 {[%clk
0:02:47.3]} 14. Bg3 {[%clk 0:02:13]} 14... Ng6 {[%clk 0:02:45.3]} 15. f3 {[%clk
0:01:56.1]} 15... f4 {[%clk 0:02:43.5]} 16. Bf2 {[%clk 0:01:54]} 16... Nce7
{[%clk 0:02:43.6]} 17. c4 {[%clk 0:01:45.9]} 17... Rd8 {[%clk 0:02:33.5]} 18. c5
{[%clk 0:01:34.8]} 18... Nf5 {[%clk 0:02:32.6]} 19. Qc3 {[%clk 0:01:24.2]} 19...
Qe7 {[%clk 0:02:29.3]} 20. Nb3 {[%clk 0:01:21.3]} 20... Qg5 {[%clk 0:02:25.2]}
21. Na5 {[%clk 0:01:15.1]} 21... Ngh4 {[%clk 0:02:22.7]} 22. Bg3 {[%clk
0:00:52.2]} 22... fxg3 {[%clk 0:02:21]} 23. f4 {[%clk 0:00:37.1]} 23... gxh2+
{[%clk 0:02:20.6]} 0-1

[Event "*** Titled Tuesday Blitz"]
[Site "Chess.com"]
[Date "2020.10.27"]
[Round "2"]
[White "Karateloru"]
[Black "Deepweb2020"]
[Result "1-0"]
[WhiteElo "2666"]
[BlackElo "2234"]
[TimeControl "180+1"]
[EndTime "10:14:58 PDT"]
[Termination "Karateloru won by checkmate"]

1. e4 {[%clk 0:03:00.9]} 1... Nf6 {[%clk 0:02:54.6]} 2. e5 {[%clk 0:02:57.8]}
2... Nd5 {[%clk 0:02:50.2]} 3. d4 {[%clk 0:02:57.6]} 3... Nb6 {[%clk 0:02:48.6]}
4. Nf3 {[%clk 0:02:56.1]} 4... d5 {[%clk 0:02:46.4]} 5. b3 {[%clk 0:02:52.9]}
5... Bf5 {[%clk 0:02:46.4]} 6. a4 {[%clk 0:02:51.6]} 6... a5 {[%clk 0:02:44.1]}
7. Bd3 {[%clk 0:02:47]} 7... Bg6 {[%clk 0:02:32.8]} 8. e6 {[%clk 0:02:46.1]}
8... Bh5 {[%clk 0:02:07.5]} 9. exf7+ {[%clk 0:02:43.7]} 9... Bxf7 {[%clk
0:02:05.3]} 10. Ne5 {[%clk 0:02:43.6]} 10... g6 {[%clk 0:01:50.6]} 11. Qf3
{[%clk 0:02:23.9]} 11... Be6 {[%clk 0:01:38.8]} 12. Qg3 {[%clk 0:02:23.6]} 12...
Bg7 {[%clk 0:01:31.2]} 13. Bxg6+ {[%clk 0:02:19.3]} 13... Kf8 {[%clk 0:01:09.8]}
14. Qf3+ {[%clk 0:02:17.2]} 14... Bf6 {[%clk 0:01:09.1]} 15. Bh6+ {[%clk
0:02:16.5]} 15... Kg8 {[%clk 0:01:07.7]} 16. Bf5 {[%clk 0:02:07.2]} 16... Bxf5
{[%clk 0:01:03.9]} 17. Qxf5 {[%clk 0:02:02.7]} 17... Qc8 {[%clk 0:00:52.6]} 18.
Qf3 {[%clk 0:01:57.1]} 18... Bxe5 {[%clk 0:00:48.6]} 19. dxe5 {[%clk 0:01:58]}
19... Qe6 {[%clk 0:00:48.3]} 20. Qf8# {[%clk 0:01:53.5]} 1-0

[Event "*** Titled Tuesday Blitz"]
[Site "Chess.com"]
[Date "2020.10.27"]
[Round "2"]
[White "m-garcett"]
[Black "dawtonlms"]
[Result "1-0"]
[WhiteElo "2059"]
[BlackElo "2392"]
[TimeControl "180+1"]
[EndTime "10:15:03 PDT"]
[Termination "m-garcett won by checkmate"]

1. e4 {[%clk 0:03:00.9]} 1... c5 {[%clk 0:02:49.5]} 2. Nf3 {[%clk 0:02:55]} 2...
e6 {[%clk 0:02:48.4]} 3. d4 {[%clk 0:02:55.1]} 3... cxd4 {[%clk 0:02:48.5]} 4.
Nxd4 {[%clk 0:02:56]} 4... a6 {[%clk 0:02:49.1]} 5. Bd3 {[%clk 0:02:53.3]} 5...
Nf6 {[%clk 0:02:47]} 6. Qe2 {[%clk 0:02:52.3]} 6... d6 {[%clk 0:02:46.3]} 7. O-O
{[%clk 0:02:50.3]} 7... Qc7 {[%clk 0:02:46.2]} 8. c4 {[%clk 0:02:39]} 8... g6
{[%clk 0:02:45.3]} 9. f4 {[%clk 0:02:34.1]} 9... Bg7 {[%clk 0:02:36.9]} 10. Be3
{[%clk 0:02:16.5]} 10... O-O {[%clk 0:02:33.8]} 11. Nc3 {[%clk 0:02:16.5]} 11...
Nbd7 {[%clk 0:02:30.8]} 12. b4 {[%clk 0:02:16.3]} 12... b6 {[%clk 0:02:30.4]}
13. Rac1 {[%clk 0:02:14.7]} 13... Bb7 {[%clk 0:02:29.5]} 14. g4 {[%clk
0:02:11.6]} 14... e5 {[%clk 0:02:19.1]} 15. Nd5 {[%clk 0:01:50.9]} 15... Nxd5
{[%clk 0:02:13.9]} 16. cxd5 {[%clk 0:01:51.8]} 16... Qd8 {[%clk 0:02:10.8]} 17.
Nc6 {[%clk 0:01:51.9]} 17... Qh4 {[%clk 0:02:07.6]} 18. f5 {[%clk 0:00:59]}
18... Nf6 {[%clk 0:02:07.3]} 19. g5 {[%clk 0:00:36.6]} 19... Nxe4 {[%clk
0:02:02.7]} 20. f6 {[%clk 0:00:32.9]} 20... Bh8 {[%clk 0:02:02.2]} 21. Ne7#
{[%clk 0:00:26.6]} 1-0

[Event "*** Titled Tuesday Blitz"]
[Site "Chess.com"]
[Date "2020.10.27"]
[Round "2"]
[White "Shield12"]
[Black "xberli"]
[Result "1-0"]
[WhiteElo "2834"]
[BlackElo "2545"]
[TimeControl "180+1"]
[EndTime "10:15:07 PDT"]
[Termination "Shield12 won by resignation"]

1. b3 {[%clk 0:03:00.9]} 1... Nf6 {[%clk 0:02:58.1]} 2. Bb2 {[%clk 0:03:01.5]}
2... g6 {[%clk 0:02:58.4]} 3. g3 {[%clk 0:03:02]} 3... Bg7 {[%clk 0:02:57.7]} 4.
Bg2 {[%clk 0:03:02.9]} 4... O-O {[%clk 0:02:57.9]} 5. Nf3 {[%clk 0:03:03.2]}
5... d5 {[%clk 0:02:55.3]} 6. c4 {[%clk 0:03:02.8]} 6... a5 {[%clk 0:02:54.9]}
7. cxd5 {[%clk 0:03:00.2]} 7... Qxd5 {[%clk 0:02:54.2]} 8. Nc3 {[%clk
0:02:58.9]} 8... Qh5 {[%clk 0:02:53.6]} 9. h3 {[%clk 0:02:56.8]} 9... Nc6 {[%clk
0:02:17.5]} 10. g4 {[%clk 0:02:54]} 10... Qc5 {[%clk 0:02:14.1]} 11. Rc1 {[%clk
0:02:50.8]} 11... Qd6 {[%clk 0:02:01]} 12. Nb5 {[%clk 0:02:38.2]} 12... Qd8
{[%clk 0:01:51.3]} 13. O-O {[%clk 0:02:35.9]} 13... Be6 {[%clk 0:01:35.7]} 14.
Ng5 {[%clk 0:02:29]} 14... Bd7 {[%clk 0:01:26.6]} 15. d4 {[%clk 0:02:25.2]}
15... e6 {[%clk 0:01:16.2]} 16. a3 {[%clk 0:02:06.8]} 16... Re8 {[%clk
0:01:09.6]} 17. e3 {[%clk 0:02:05.5]} 17... Rc8 {[%clk 0:00:56.6]} 18. Qe2
{[%clk 0:02:03.3]} 18... h6 {[%clk 0:00:49.9]} 19. Nf3 {[%clk 0:02:02.1]} 19...
Ne7 {[%clk 0:00:46.4]} 20. Ne5 {[%clk 0:02:00.2]} 20... c6 {[%clk 0:00:42.2]}
21. Nd6 {[%clk 0:01:58.8]} 21... Rb8 {[%clk 0:00:38.7]} 22. Nexf7 {[%clk
0:01:54.5]} 1-0

[Event "*** Titled Tuesday Blitz"]
[Site "Chess.com"]
[Date "2020.10.27"]
[Round "2"]
[White "Onischuk_V"]
[Black "PLAYER_2006_M"]
[Result "1-0"]
[WhiteElo "2781"]
[BlackElo "2515"]
[TimeControl "180+1"]
[EndTime "10:15:10 PDT"]
[Termination "Onischuk_V won by resignation"]

1. e4 {[%clk 0:02:59.3]} 1... e5 {[%clk 0:02:58.4]} 2. Nf3 {[%clk 0:02:59.3]}
2... Nc6 {[%clk 0:02:55.8]} 3. Bc4 {[%clk 0:02:58.7]} 3... Bc5 {[%clk
0:02:55.4]} 4. d3 {[%clk 0:02:58.1]} 4... Nf6 {[%clk 0:02:55]} 5. O-O {[%clk
0:02:58.1]} 5... O-O {[%clk 0:02:49.1]} 6. Nbd2 {[%clk 0:02:58.1]} 6... a6
{[%clk 0:02:46.3]} 7. Bb3 {[%clk 0:02:58.2]} 7... d6 {[%clk 0:02:44.3]} 8. c3
{[%clk 0:02:58.5]} 8... Ba7 {[%clk 0:02:43.8]} 9. h3 {[%clk 0:02:57.8]} 9... Ne7
{[%clk 0:02:43.1]} 10. Re1 {[%clk 0:02:57.2]} 10... Ng6 {[%clk 0:02:43]} 11. Nf1
{[%clk 0:02:55.6]} 11... Nh5 {[%clk 0:02:43.1]} 12. d4 {[%clk 0:02:37.5]} 12...
Nhf4 {[%clk 0:02:40]} 13. Ng3 {[%clk 0:02:34.1]} 13... h6 {[%clk 0:02:36.7]} 14.
Bc2 {[%clk 0:02:20.6]} 14... Qf6 {[%clk 0:02:35.4]} 15. Nf5 {[%clk 0:02:20.6]}
15... Be6 {[%clk 0:02:25.1]} 16. g3 {[%clk 0:02:00.8]} 16... Nh5 {[%clk
0:01:50.8]} 17. Nh2 {[%clk 0:01:56.7]} 17... Nhf4 {[%clk 0:01:39.6]} 18. gxf4
{[%clk 0:01:53.4]} 18... Nxf4 {[%clk 0:01:38.2]} 19. Bxf4 {[%clk 0:01:52.5]}
19... exf4 {[%clk 0:01:36.9]} 20. Qf3 {[%clk 0:01:38.6]} 20... Qg5+ {[%clk
0:01:31.6]} 21. Kh1 {[%clk 0:01:38.1]} 21... Bxf5 {[%clk 0:01:28]} 22. exf5
{[%clk 0:01:37.6]} 22... h5 {[%clk 0:01:28.2]} 23. Rg1 {[%clk 0:01:34.6]} 23...
Qh4 {[%clk 0:01:25]} 24. Rg2 {[%clk 0:01:25.1]} 24... Kh8 {[%clk 0:01:17.2]} 25.
Rag1 {[%clk 0:01:24.7]} 25... Rg8 {[%clk 0:01:16.2]} 26. Rg5 {[%clk 0:01:23.9]}
1-0

[Event "*** Titled Tuesday Blitz"]
[Site "Chess.com"]
[Date "2020.10.27"]
[Round "2"]
[White "Fy_Rakotomaharo"]
[Black "kinga2008"]
[Result "1-0"]
[WhiteElo "2649"]
[BlackElo "2125"]
[TimeControl "180+1"]
[EndTime "10:15:11 PDT"]
[Termination "Fy_Rakotomaharo won by resignation"]

1. e4 {[%clk 0:03:00.9]} 1... c5 {[%clk 0:02:36.4]} 2. Nf3 {[%clk 0:03:00.8]}
2... Nc6 {[%clk 0:02:35.3]} 3. Bb5 {[%clk 0:03:00.7]} 3... g6 {[%clk 0:02:34.2]}
4. O-O {[%clk 0:02:59]} 4... Bg7 {[%clk 0:02:33]} 5. c3 {[%clk 0:02:58.2]} 5...
e6 {[%clk 0:02:28.6]} 6. d4 {[%clk 0:02:48.5]} 6... cxd4 {[%clk 0:02:28.6]} 7.
cxd4 {[%clk 0:02:48.8]} 7... d5 {[%clk 0:02:28]} 8. Bxc6+ {[%clk 0:02:38.8]}
8... bxc6 {[%clk 0:02:26.8]} 9. e5 {[%clk 0:02:39.4]} 9... Ne7 {[%clk
0:02:25.9]} 10. b3 {[%clk 0:02:39.6]} 10... O-O {[%clk 0:02:25]} 11. Nc3 {[%clk
0:02:35.6]} 11... Ba6 {[%clk 0:02:22.8]} 12. Re1 {[%clk 0:02:35.2]} 12... Nf5
{[%clk 0:02:22.3]} 13. Na4 {[%clk 0:02:27.6]} 13... Bb5 {[%clk 0:02:08.9]} 14.
Nc5 {[%clk 0:02:25.9]} 14... Re8 {[%clk 0:02:09.3]} 15. a4 {[%clk 0:02:24.6]}
15... f6 {[%clk 0:02:02.2]} 16. axb5 {[%clk 0:02:19]} 16... fxe5 {[%clk
0:02:00.2]} 17. Nxe5 {[%clk 0:02:14.7]} 17... cxb5 {[%clk 0:01:58]} 18. Ra6
{[%clk 0:02:06.4]} 18... Rc8 {[%clk 0:01:46.1]} 19. Nxe6 {[%clk 0:01:51.5]}
19... Qf6 {[%clk 0:01:32.5]} 20. Nc7 {[%clk 0:01:43.6]} 20... Qh4 {[%clk
0:01:27.3]} 21. Nxe8 {[%clk 0:01:41.5]} 21... Rxe8 {[%clk 0:01:25.3]} 22. Nf3
{[%clk 0:01:37]} 22... Rxe1+ {[%clk 0:01:23]} 23. Qxe1 {[%clk 0:01:37.9]} 23...
Qe4 {[%clk 0:01:21.9]} 24. Qxe4 {[%clk 0:01:35.5]} 24... dxe4 {[%clk 0:01:22.8]}
25. Ng5 {[%clk 0:01:35.8]} 25... Nxd4 {[%clk 0:01:21.5]} 26. Be3 {[%clk
0:01:31.7]} 26... Nc2 {[%clk 0:01:15.1]} 27. Nxe4 {[%clk 0:01:26.2]} 27... Nxe3
{[%clk 0:01:14.5]} 1-0

[Event "*** Titled Tuesday Blitz"]
[Site "Chess.com"]
[Date "2020.10.27"]
[Round "2"]
[White "Margarita2907"]
[Black "Oligan22"]
[Result "1-0"]
[WhiteElo "2192"]
[BlackElo "2417"]
[TimeControl "180+1"]
[EndTime "10:15:29 PDT"]
[Termination "Margarita2907 won by resignation"]

1. e4 {[%clk 0:03:00.9]} 1... e5 {[%clk 0:03:00.1]} 2. Nf3 {[%clk 0:03:00.6]}
2... d6 {[%clk 0:03:00.5]} 3. d4 {[%clk 0:02:57.3]} 3... exd4 {[%clk 0:03:01.4]}
4. Nxd4 {[%clk 0:02:57.5]} 4... Nf6 {[%clk 0:03:02]} 5. Nc3 {[%clk 0:02:57.2]}
5... Be7 {[%clk 0:03:02.5]} 6. Bc4 {[%clk 0:02:54.5]} 6... O-O {[%clk
0:03:01.5]} 7. O-O {[%clk 0:02:53.2]} 7... Nbd7 {[%clk 0:02:57.9]} 8. h3 {[%clk
0:02:52.3]} 8... Ne5 {[%clk 0:02:57.9]} 9. Bb3 {[%clk 0:02:50.7]} 9... a6 {[%clk
0:02:52.7]} 10. a4 {[%clk 0:02:47.5]} 10... c5 {[%clk 0:02:50.5]} 11. Nf3 {[%clk
0:02:44.6]} 11... Nxf3+ {[%clk 0:02:47.5]} 12. Qxf3 {[%clk 0:02:45.5]} 12... Be6
{[%clk 0:02:47.9]} 13. Bd5 {[%clk 0:02:36.4]} 13... Bxd5 {[%clk 0:02:30.9]} 14.
Nxd5 {[%clk 0:02:36]} 14... Nxd5 {[%clk 0:02:31]} 15. exd5 {[%clk 0:02:36.5]}
15... Bf6 {[%clk 0:02:31.6]} 16. c3 {[%clk 0:02:33.3]} 16... b5 {[%clk
0:02:29.2]} 17. axb5 {[%clk 0:02:31.1]} 17... axb5 {[%clk 0:02:30.1]} 18. Bf4
{[%clk 0:02:29.1]} 18... Rxa1 {[%clk 0:02:19.6]} 19. Rxa1 {[%clk 0:02:27.9]}
19... Qe7 {[%clk 0:02:19.8]} 20. Qg3 {[%clk 0:02:22.6]} 20... Be5 {[%clk
0:02:12.8]} 21. Bxe5 {[%clk 0:02:18.4]} 21... dxe5 {[%clk 0:02:12.8]} 22. Qe3
{[%clk 0:02:16]} 22... Rd8 {[%clk 0:02:10.3]} 23. Rd1 {[%clk 0:02:13]} 23... f6
{[%clk 0:01:59.4]} 24. b3 {[%clk 0:02:08.5]} 24... c4 {[%clk 0:01:56.2]} 25.
bxc4 {[%clk 0:02:06.3]} 25... bxc4 {[%clk 0:01:57.1]} 26. Qb6 {[%clk 0:01:55.8]}
26... Qd6 {[%clk 0:01:50.4]} 27. Qb5 {[%clk 0:01:52]} 27... Rc8 {[%clk
0:01:46.9]} 28. Ra1 {[%clk 0:01:38.3]} 28... Kf7 {[%clk 0:01:22.7]} 29. Ra7+
{[%clk 0:01:36.1]} 29... Rc7 {[%clk 0:01:22.9]} 30. Qb8 {[%clk 0:01:33.1]} 30...
Rxa7 {[%clk 0:01:17.3]} 31. Qxd6 {[%clk 0:01:33.1]} 31... Ra1+ {[%clk
0:01:15.5]} 32. Kh2 {[%clk 0:01:32.7]} 32... Rc1 {[%clk 0:01:14.2]} 33. Qb4
{[%clk 0:01:31.6]} 33... Rd1 {[%clk 0:01:13]} 34. Qxc4 {[%clk 0:01:31.6]} 34...
Ke7 {[%clk 0:01:13.6]} 35. Qc7+ {[%clk 0:01:30.6]} 1-0

[Event "*** Titled Tuesday Blitz"]
[Site "Chess.com"]
[Date "2020.10.27"]
[Round "2"]
[White "Angel_Hranitel_37"]
[Black "szefru"]
[Result "1-0"]
[WhiteElo "2461"]
[BlackElo "2238"]
[TimeControl "180+1"]
[EndTime "10:15:30 PDT"]
[Termination "Angel_Hranitel_37 won by resignation"]

1. d4 {[%clk 0:03:00.9]} 1... Nf6 {[%clk 0:00:56]} 2. Nf3 {[%clk 0:02:56.8]}
2... g6 {[%clk 0:00:55.6]} 3. g3 {[%clk 0:02:57]} 3... Bg7 {[%clk 0:00:56]} 4.
Bg2 {[%clk 0:02:57.9]} 4... d5 {[%clk 0:00:56.3]} 5. O-O {[%clk 0:02:58.8]} 5...
O-O {[%clk 0:00:56.6]} 6. c4 {[%clk 0:02:59.7]} 6... c6 {[%clk 0:00:56.9]} 7.
Qb3 {[%clk 0:03:00]} 7... dxc4 {[%clk 0:00:55.6]} 8. Qxc4 {[%clk 0:03:00.1]}
8... Be6 {[%clk 0:00:55.3]} 9. Qc2 {[%clk 0:02:58]} 9... Na6 {[%clk 0:00:54.2]}
10. Bf4 {[%clk 0:02:57]} 10... Bf5 {[%clk 0:00:53.8]} 11. Qc1 {[%clk 0:02:56.8]}
11... Nd5 {[%clk 0:00:53.3]} 12. Bh6 {[%clk 0:02:54.3]} 12... Rc8 {[%clk
0:00:52.1]} 13. Bxg7 {[%clk 0:02:54.2]} 13... Kxg7 {[%clk 0:00:53]} 14. Re1
{[%clk 0:02:53.7]} 14... c5 {[%clk 0:00:52]} 15. e4 {[%clk 0:02:47]} 15... cxd4
{[%clk 0:00:51.4]} 16. Qd2 {[%clk 0:02:44]} 16... Ndb4 {[%clk 0:00:46]} 17. exf5
{[%clk 0:02:27.9]} 17... Nc2 {[%clk 0:00:43.3]} 18. Na3 {[%clk 0:02:11.8]} 18...
Nxa1 {[%clk 0:00:41.7]} 19. Rxa1 {[%clk 0:02:12.7]} 19... f6 {[%clk 0:00:23.7]}
20. Qxd4 {[%clk 0:02:11.5]} 20... Qc7 {[%clk 0:00:18.7]} 21. Ng5 {[%clk
0:02:02.3]} 1-0

[Event "*** Titled Tuesday Blitz"]
[Site "Chess.com"]
[Date "2020.10.27"]
[Round "2"]
[White "sopo-tereladze"]
[Black "azikom"]
[Result "0-1"]
[WhiteElo "2325"]
[BlackElo "2608"]
[TimeControl "180+1"]
[EndTime "10:15:36 PDT"]
[Termination "azikom won by resignation"]

1. d4 {[%clk 0:03:00.9]} 1... d5 {[%clk 0:02:57.1]} 2. Nf3 {[%clk 0:03:00.3]}
2... Bf5 {[%clk 0:02:54.3]} 3. Bf4 {[%clk 0:02:58.9]} 3... e6 {[%clk 0:02:53.3]}
4. e3 {[%clk 0:02:58.5]} 4... Nf6 {[%clk 0:02:52.2]} 5. Bd3 {[%clk 0:02:58.7]}
5... Bg6 {[%clk 0:02:47.3]} 6. O-O {[%clk 0:02:57.6]} 6... Nbd7 {[%clk
0:02:43.4]} 7. Nbd2 {[%clk 0:02:51.2]} 7... c6 {[%clk 0:02:39.2]} 8. Re1 {[%clk
0:02:46.9]} 8... Be7 {[%clk 0:02:38.3]} 9. Ne5 {[%clk 0:02:40.1]} 9... Nxe5
{[%clk 0:02:36.2]} 10. Bxe5 {[%clk 0:02:41]} 10... O-O {[%clk 0:02:33.6]} 11.
Bxg6 {[%clk 0:02:38.5]} 11... hxg6 {[%clk 0:02:29.7]} 12. e4 {[%clk 0:02:39.4]}
12... Rc8 {[%clk 0:02:24.1]} 13. c3 {[%clk 0:02:20.6]} 13... c5 {[%clk
0:02:21.7]} 14. exd5 {[%clk 0:02:14]} 14... Qxd5 {[%clk 0:02:13.9]} 15. Bxf6
{[%clk 0:02:08.5]} 15... gxf6 {[%clk 0:02:10.7]} 16. Ne4 {[%clk 0:02:09.4]}
16... cxd4 {[%clk 0:02:07]} 17. cxd4 {[%clk 0:01:11.9]} 17... Rfd8 {[%clk
0:02:01.1]} 18. Nc3 {[%clk 0:00:52.3]} 18... Qxd4 {[%clk 0:01:58.1]} 19. Qf3
{[%clk 0:00:52.6]} 19... Qb6 {[%clk 0:01:54.5]} 20. Rab1 {[%clk 0:00:45.7]}
20... Kg7 {[%clk 0:01:49.1]} 21. h3 {[%clk 0:00:40.7]} 21... Rd2 {[%clk
0:01:45.5]} 22. Re2 {[%clk 0:00:39.2]} 22... Rxe2 {[%clk 0:01:42]} 23. Qxe2
{[%clk 0:00:40.1]} 23... Rxc3 {[%clk 0:01:37.5]} 0-1

[Event "*** Titled Tuesday Blitz"]
[Site "Chess.com"]
[Date "2020.10.27"]
[Round "2"]
[White "Dedic8"]
[Black "Treacherous_horse64"]
[Result "1-0"]
[WhiteElo "2795"]
[BlackElo "2520"]
[TimeControl "180+1"]
[EndTime "10:15:40 PDT"]
[Termination "Dedic8 won by resignation"]

1. e4 {[%clk 0:03:00.9]} 1... c6 {[%clk 0:02:59.1]} 2. d4 {[%clk 0:02:58.7]}
2... d5 {[%clk 0:03:00]} 3. Nc3 {[%clk 0:02:59]} 3... dxe4 {[%clk 0:03:00.1]} 4.
Nxe4 {[%clk 0:02:59.9]} 4... Nd7 {[%clk 0:03:01]} 5. Nf3 {[%clk 0:02:59.9]} 5...
Ngf6 {[%clk 0:03:01]} 6. Nxf6+ {[%clk 0:03:00.5]} 6... Nxf6 {[%clk 0:03:01.9]}
7. Bc4 {[%clk 0:03:01.3]} 7... Bf5 {[%clk 0:02:57.8]} 8. O-O {[%clk 0:02:59.5]}
8... e6 {[%clk 0:02:56.2]} 9. Re1 {[%clk 0:02:59.5]} 9... Be7 {[%clk 0:02:54.3]}
10. Bf4 {[%clk 0:02:53.3]} 10... O-O {[%clk 0:02:50.5]} 11. h3 {[%clk
0:02:52.8]} 11... h6 {[%clk 0:02:49.6]} 12. c3 {[%clk 0:02:50.4]} 12... Rc8
{[%clk 0:02:44.4]} 13. Qe2 {[%clk 0:02:49.3]} 13... Re8 {[%clk 0:02:41.5]} 14.
Ne5 {[%clk 0:02:48.1]} 14... c5 {[%clk 0:02:31.5]} 15. Rad1 {[%clk 0:02:28.8]}
15... Qb6 {[%clk 0:02:29.6]} 16. Bb3 {[%clk 0:02:17]} 16... cxd4 {[%clk
0:02:27.9]} 17. Rxd4 {[%clk 0:02:17.3]} 17... Bc5 {[%clk 0:02:24.3]} 18. Rd2
{[%clk 0:02:17]} 18... Ne4 {[%clk 0:02:22.6]} 19. Nd7 {[%clk 0:02:01.2]} 19...
Qc6 {[%clk 0:01:31]} 20. Nxc5 {[%clk 0:02:00.4]} 20... Nxd2 {[%clk 0:01:24]} 21.
Ba4 {[%clk 0:01:59.6]} 21... Qxc5 {[%clk 0:01:11.3]} 22. Bxe8 {[%clk 0:01:59.7]}
22... Rxe8 {[%clk 0:01:10.3]} 23. Qxd2 {[%clk 0:01:59.8]} 23... Qc6 {[%clk
0:01:02.5]} 24. Rd1 {[%clk 0:01:48.9]} 24... Rc8 {[%clk 0:01:01.6]} 25. Be3
{[%clk 0:01:47.8]} 25... a6 {[%clk 0:01:01.1]} 26. Qd4 {[%clk 0:01:40.3]} 26...
Qc4 {[%clk 0:00:56.1]} 27. Qxc4 {[%clk 0:01:40.7]} 27... Rxc4 {[%clk 0:00:57]}
28. Rd8+ {[%clk 0:01:41.6]} 28... Kh7 {[%clk 0:00:56.7]} 29. Rd7 {[%clk
0:01:42.5]} 29... b5 {[%clk 0:00:55.7]} 30. Rxf7 {[%clk 0:01:42.3]} 30... b4
{[%clk 0:00:55]} 31. Bd4 {[%clk 0:01:42.7]} 31... Kg8 {[%clk 0:00:50]} 32. Rxg7+
{[%clk 0:01:42.7]} 32... Kf8 {[%clk 0:00:50.1]} 33. Ra7 {[%clk 0:01:41.6]} 33...
Rxc3 {[%clk 0:00:50.2]} 34. Bxc3 {[%clk 0:01:42.1]} 1-0